fUSD/lending_fUSD_20250823
["ID","MTS","AMOUNT","RATE_DAILY","PERIOD"]
[381000870,1755931843587,-400.0,0.00013698,2]
[381000871,1755931843596,-893.35,0.00013698,2]
[381000872,1755931843605,-400.0,0.00013698,2]
[381000873,1755931843618,-400.0,0.00013698,2]
[381000874,1755931843628,-515.17,0.00013698,2]
[381000875,1755931843637,-400.0,0.00013698,2]
[381000876,1755931843647,-412.49,0.00013698,2]
[381000877,1755931843658,-400.0,0.00013698,2]
[381000878,1755931843667,-400.0,0.00013698,2]
[381000879,1755931843677,-400.0,0.00013698,2]
[381000880,1755931843686,-400.0,0.00013698,2]
[381000881,1755931843696,-628.41,0.00013698,2]
[381000882,1755931843705,-400.0,0.00013698,2]
[381000883,1755931843715,-400.0,0.00013698,2]
[381000884,1755931843724,-400.0,0.00013698,2]
[381000885,1755931843733,-455.72,0.00013698,2]
[381000886,1755931843743,-400.0,0.00013698,2]
[381000887,1755931843752,-400.0,0.00013698,2]
[381000888,1755931843762,-400.0,0.00013698,2]
[381000889,1755931843771,-400.0,0.00013698,2]
[381000890,1755931843780,-461.95,0.00013698,2]
[381000891,1755931843790,-400.0,0.00013698,2]
[381000892,1755931843800,-400.0,0.00013698,2]
[381000893,1755931843809,-400.0,0.00013698,2]
[381000894,1755931843818,-400.0,0.00013698,2]
[381000895,1755931843827,-543.34,0.00013698,2]
[381000896,1755931843836,-400.0,0.00013698,2]
[381000897,1755931843845,-400.0,0.00013698,2]
[381000898,1755931843854,-400.0,0.00013698,2]
[381000899,1755931843863,-400.0,0.00013698,2]
[381000900,1755931843872,-400.0,0.00013698,2]
[381000901,1755931843881,-775.83,0.00013698,2]
[381000902,1755931843891,-401.3316643,0.00013698,2]
[381000903,1755931843900,-400.0,0.00013698,2]
[381000904,1755931843910,-400.0,0.00013698,2]
[381000905,1755931843919,-400.0,0.00013698,2]
[381000906,1755931843927,-400.0,0.00013698,2]
[381000907,1755931843936,-400.0,0.00013698,2]
[381000908,1755931843946,-400.0,0.00013698,2]
[381000909,1755931843955,-400.0,0.00013698,2]
[381000910,1755931843964,-400.0,0.00013698,2]
[381000911,1755931843973,-523.05,0.00013698,2]
[381000912,1755931843982,-413.55356756,0.00013698,2]
[381000913,1755931843991,-400.0,0.00013698,2]
[381000914,1755931844000,-400.0,0.00013698,2]
[381000915,1755931844009,-400.0,0.00013698,2]
[381000916,1755931844019,-400.0,0.00013698,2]
[381000917,1755931844028,-406.62,0.00013698,2]
[381000918,1755931844037,-400.0,0.00013698,2]
[381000919,1755931844046,-334.55629236,0.00013698,2]
[381000920,1755931844055,-790.06,0.00013698,2]
[381000921,1755931844065,-400.0,0.00013698,2]
[381000922,1755931844074,-711.41,0.00013698,2]
[381000923,1755931844083,-400.0,0.00013698,2]
[381000924,1755931844093,-400.0,0.00013698,2]
[381000925,1755931844103,-400.0,0.00013698,2]
[381000926,1755931844112,-400.0,0.00013698,2]
[381000927,1755931844121,-456.52,0.00013698,2]
[381000928,1755931844131,-400.0,0.00013698,2]
[381000929,1755931844141,-568.12,0.00013698,2]
[381000930,1755931844150,-873.54,0.00013698,2]
[381000931,1755931844159,-408.64,0.00013698,2]
[381000932,1755931844169,-770.47,0.00013698,2]
[381000933,1755931844177,-500.0,0.00013698,2]
[381000934,1755931844187,-500.0,0.00013698,2]
[381000935,1755931844196,-500.0,0.00013698,2]
[381000936,1755931844206,-500.0,0.00013698,2]
[381000937,1755931844215,-500.0,0.00013698,2]
[381000938,1755931844225,-478.66,0.00013698,2]
[381000939,1755931844234,-500.0,0.00013698,2]
[381000940,1755931844243,-500.0,0.00013698,2]
[381000941,1755931844251,-500.0,0.00013698,2]
[381000942,1755931844261,-500.0,0.00013698,2]
[381000943,1755931844270,-500.0,0.00013698,2]
[381000944,1755931844279,-500.0,0.00013698,2]
[381000945,1755931844289,-500.0,0.00013698,2]
[381000946,1755931844298,-500.0,0.00013698,2]
[381000947,1755931844307,-400.0,0.00013698,2]
[381000948,1755931844316,-620.40209905,0.00013698,2]
[381000949,1755931844325,-400.0,0.00013698,2]
[381000950,1755931844334,-506.84,0.00013698,2]
[381000951,1755931844343,-400.0,0.00013698,2]
[381000952,1755931844352,-400.0,0.00013698,2]
[381000953,1755931844362,-401.33347911,0.00013698,2]
[381000954,1755931844371,-402.86695691,0.00013698,2]
[381000955,1755931844382,-400.0,0.00013698,2]
[381000956,1755931844391,-530.03,0.00013698,2]
[381000957,1755931844400,-400.0,0.00013698,2]
[381000958,1755931844409,-400.0,0.00013698,2]
[381000959,1755931844419,-400.0,0.00013698,2]
[381000960,1755931844428,-400.0,0.00013698,2]
[381000961,1755931844437,-409.21,0.00013698,2]
[381000962,1755931844448,-400.0,0.00013698,2]
[381000963,1755931844458,-400.0,0.00013698,2]
[381000964,1755931844468,-400.0,0.00013698,2]
[381000965,1755931844477,-400.0,0.00013698,2]
[381000966,1755931844487,-400.0,0.00013698,2]
[381000967,1755931844498,-400.0,0.00013698,2]
[381000968,1755931844508,-788.94,0.00013698,2]
[381000969,1755931844517,-412.57,0.00013698,2]
[381000970,1755931844526,-401.9491811,0.00013698,2]
[381000971,1755931844535,-400.0,0.00013698,2]
[381000972,1755931844544,-400.0,0.00013698,2]
[381000973,1755931844553,-400.0,0.00013698,2]
[381000974,1755931844562,-509.95,0.00013698,2]
[381000975,1755931844571,-450.92,0.00013698,2]
[381000976,1755931844581,-400.0,0.00013698,2]
[381000977,1755931844590,-400.0,0.00013698,2]
[381000978,1755931844599,-400.0,0.00013698,2]
[381000979,1755931844609,-435.16,0.00013698,2]
[381000980,1755931844622,-544.28,0.00013698,2]
[381000981,1755931844632,-418.16,0.00013698,2]
[381000982,1755931844640,-400.0,0.00013698,2]
[381000983,1755931844650,-400.0,0.00013698,2]
[381000984,1755931844660,-400.0,0.00013698,2]
[381000985,1755931844670,-415.92,0.00013698,2]
[381000986,1755931844679,-400.0,0.00013698,2]
[381000987,1755931844690,-400.0,0.00013698,2]
[381000988,1755931844700,-400.0,0.00013698,2]
[381000989,1755931844709,-400.0,0.00013698,2]
[381000990,1755931844718,-400.0,0.00013698,2]
[381000991,1755931844728,-400.0,0.00013698,2]
[381000992,1755931844737,-400.0,0.00013698,2]
[381000993,1755931844746,-400.0,0.00013698,2]
[381000994,1755931844755,-580.19,0.00013698,2]
[381000995,1755931844765,-465.06,0.00013698,2]
[381000996,1755931844774,-400.0,0.00013698,2]
[381000997,1755931844784,-1682.42,0.00013698,2]
[381000998,1755931844793,-400.0,0.00013698,2]
[381000999,1755931844803,-431.66,0.00013698,2]
[381001000,1755931844812,-444.72,0.00013698,2]
[381001001,1755931844822,-400.0,0.00013698,2]
[381001002,1755931844831,-400.0,0.00013698,2]
[381001003,1755931844840,-610.36,0.00013698,2]
[381001004,1755931844849,-476.7,0.00013698,2]
[381001005,1755931844859,-400.0,0.00013698,2]
[381001006,1755931844868,-400.0,0.00013698,2]
[381001007,1755931844877,-812.39,0.00013698,2]
[381001008,1755931844887,-476.37,0.00013698,2]
[381001009,1755931844896,-432.55,0.00013698,2]
[381001010,1755931844905,-690.24,0.00013698,2]
[381001011,1755931844915,-566.02,0.00013698,2]
[381001012,1755931844924,-400.0,0.00013698,2]
[381001013,1755931844934,-400.0,0.00013698,2]
[381001014,1755931844943,-418.96,0.00013698,2]
[381001015,1755931844953,-400.0,0.00013698,2]
[381001016,1755931844962,-410.9,0.00013698,2]
[381001017,1755931844971,-400.0,0.00013698,2]
[381001018,1755931844980,-676.65,0.00013698,2]
[381001019,1755931844990,-400.0,0.00013698,2]
[381001020,1755931844999,-1064.79,0.00013698,2]
[381001021,1755931845009,-400.0,0.00013698,2]
[381001022,1755931845018,-400.0,0.00013698,2]
[381001023,1755931845028,-483.98,0.00013698,2]
[381001024,1755931845037,-400.0,0.00013698,2]
[381001025,1755931845046,-401.62293899,0.00013698,2]
[381001026,1755931845055,-523.72,0.00013698,2]
[381001027,1755931845064,-532.62,0.00013698,2]
[381001028,1755931845073,-968.34,0.00013698,2]
[381001029,1755931845083,-400.0,0.00013698,2]
[381001030,1755931845092,-442.47,0.00013698,2]
[381001031,1755931845101,-400.0,0.00013698,2]
[381001032,1755931845111,-739.8,0.00013698,2]
[381001033,1755931845120,-152.259472,0.00013698,2]
[381001034,1755931845128,-431.85,0.00013698,2]
[381001035,1755931845139,-400.0,0.00013698,2]
[381001036,1755931845148,-454.1,0.00013698,2]
[381001037,1755931845157,-521.5,0.00013698,2]
[381001038,1755931845166,-400.0,0.00013698,2]
[381001039,1755931845175,-400.0,0.00013698,2]
[381001040,1755931845185,-428.52,0.00013698,2]
[381001041,1755931845194,-400.0,0.00013698,2]
[381001042,1755931845203,-609.89,0.00013698,2]
[381001043,1755931845213,-400.0,0.00013698,2]
[381001044,1755931845223,-628.33,0.00013698,2]
[381001045,1755931845233,-400.0,0.00013698,2]
[381001046,1755931845243,-701.54,0.00013698,2]
[381001047,1755931845252,-400.0,0.00013698,2]
[381001048,1755931845262,-277.52154738,0.00013698,2]
[381001049,1755931845271,-400.0,0.00013698,2]
[381001050,1755931845280,-400.0,0.00013698,2]
[381001051,1755931845289,-400.0,0.00013698,2]
[381001052,1755931845299,-459.6866411,0.00013698,2]
[381001053,1755931845308,-1082.39,0.00013698,2]
[381001054,1755931845317,-400.0,0.00013698,2]
[381001055,1755931845326,-407.29,0.00013698,2]
[381001056,1755931845335,-400.0,0.00013698,2]
[381001057,1755931845344,-502.11,0.00013698,2]
[381001058,1755931845353,-401.35565906,0.00013698,2]
[381001059,1755931845362,-400.0,0.00013698,2]
[381001060,1755931845371,-154.793984,0.00013698,2]
[381001061,1755931845381,-400.0,0.00013698,2]
[381001062,1755931845394,-400.0,0.00013698,2]
[381001063,1755931845403,-400.0,0.00013698,2]
[381001064,1755931845413,-400.0,0.00013698,2]
[381001065,1755931845422,-1022.02,0.00013698,2]
[381001066,1755931845431,-495.07,0.00013698,2]
[381001067,1755931845441,-400.0,0.00013698,2]
[381001068,1755931845451,-523.54,0.00013698,2]
[381001069,1755931845460,-411.92,0.00013698,2]
[381001070,1755931845469,-400.0,0.00013698,2]
[381001071,1755931845479,-400.0,0.00013698,2]
[381001072,1755931845488,-1092.28,0.00013698,2]
[381001073,1755931845498,-400.0,0.00013698,2]
[381001074,1755931845507,-400.0,0.00013698,2]
[381001075,1755931845516,-400.0,0.00013698,2]
[381001076,1755931845526,-400.0,0.00013698,2]
[381001077,1755931845535,-411.41,0.00013698,2]
[381001078,1755931845544,-400.0,0.00013698,2]
[381001079,1755931845553,-577.65,0.00013698,2]
[381001080,1755931845563,-400.0,0.00013698,2]
[381001081,1755931845572,-400.0,0.00013698,2]
[381001082,1755931845581,-663.828945,0.00013698,2]
[381001083,1755931845592,-472.81,0.00013698,2]
[381001084,1755931845602,-400.0,0.00013698,2]
[381001085,1755931845612,-400.0,0.00013698,2]
[381001086,1755931845623,-400.0,0.00013698,2]
[381001087,1755931845632,-400.0,0.00013698,2]
[381001088,1755931845641,-562.43,0.00013698,2]
[381001089,1755931845651,-456.44,0.00013698,2]
[381001090,1755931845662,-400.0,0.00013698,2]
[381001091,1755931845671,-163.636868,0.00013698,2]
[381001092,1755931845680,-400.0,0.00013698,2]
[381001093,1755931845690,-400.0,0.00013698,2]
[381001094,1755931845701,-549.87,0.00013698,2]
[381001095,1755931845710,-400.0,0.00013698,2]
[381001096,1755931845719,-400.0,0.00013698,2]
[381001097,1755931845729,-689.68,0.00013698,2]
[381001098,1755931845738,-400.0,0.00013698,2]
[381001099,1755931845748,-550.52,0.00013698,2]
[381001100,1755931845757,-439.61,0.00013698,2]
[381001101,1755931845767,-429.5,0.00013698,2]
[381001102,1755931845776,-400.0,0.00013698,2]
[381001103,1755931845785,-933.16,0.00013698,2]
[381001104,1755931845799,-400.0,0.00013698,2]
[381001105,1755931845808,-400.0,0.00013698,2]
[381001106,1755931845817,-906.69,0.00013698,2]
[381001107,1755931845827,-400.0,0.00013698,2]
[381001108,1755931845836,-468.89,0.00013698,2]
[381001109,1755931845846,-412.34358316,0.00013698,2]
[381001110,1755931845855,-400.46280326,0.00013698,2]
[381001111,1755931845864,-575.01,0.00013698,2]
[381001112,1755931845874,-400.0,0.00013698,2]
[381001113,1755931845883,-781.92,0.00013698,2]
[381001114,1755931845893,-861.7,0.00013698,2]
[381001115,1755931845902,-400.0,0.00013698,2]
[381001116,1755931845912,-403.75,0.00013698,2]
[381001117,1755931845921,-400.0,0.00013698,2]
[381001118,1755931845930,-400.0,0.00013698,2]
[381001119,1755931845940,-470.06,0.00013698,2]
[381001120,1755931845950,-400.0,0.00013698,2]
[381001121,1755931845959,-499.04,0.00013698,2]
[381001122,1755931845968,-400.0,0.00013698,2]
[381001123,1755931845977,-400.0,0.00013698,2]
[381001124,1755931845987,-400.0,0.00013698,2]
[381001125,1755931845996,-440.46,0.00013698,2]
[381001126,1755931846006,-601.56,0.00013698,2]
[381001127,1755931846017,-425.43,0.00013698,2]
[381001128,1755931846027,-400.0,0.00013698,2]
[381001129,1755931846039,-1847.36,0.00013698,2]
[381001130,1755931846049,-686.49,0.00013698,2]
[381001131,1755931846058,-400.0,0.00013698,2]
[381001132,1755931846068,-666.16,0.00013698,2]
[381001133,1755931846077,-1336.44,0.00013698,2]
[381001134,1755931846086,-400.0,0.00013698,2]
[381001135,1755931846096,-516.42,0.00013698,2]
[381001136,1755931846105,-400.0,0.00013698,2]
[381001137,1755931846115,-400.0,0.00013698,2]
[381001138,1755931846124,-446.22,0.00013698,2]
[381001139,1755931846133,-284.16484057,0.00013698,2]
[381001140,1755931846166,-115.83515943,0.00013698,2]
[381001141,1755931846175,-400.0,0.00013698,2]
[381001142,1755931846185,-400.0,0.00013698,2]
[381001143,1755931846195,-428.77819687,0.00013698,2]
[381001144,1755931846205,-400.0,0.00013698,2]
[381001145,1755931846214,-640.73,0.00013698,2]
[381001147,1755931846224,-400.0,0.00013698,2]
[381001148,1755931846234,-543.01,0.00013698,2]
[381001149,1755931846242,-400.0,0.00013698,2]
[381001151,1755931846252,-400.0,0.00013698,2]
[381001153,1755931846263,-446.03,0.00013698,2]
[381001155,1755931846273,-400.0,0.00013698,2]
[381001157,1755931846283,-400.0,0.00013698,2]
[381001160,1755931846294,-400.0,0.00013698,2]
[381001162,1755931846303,-417.1,0.00013698,2]
[381001164,1755931846313,-400.0,0.00013698,2]
[381001166,1755931846324,-486.77,0.00013698,2]
[381001168,1755931846334,-429.15,0.00013698,2]
[381001170,1755931846344,-587.64,0.00013698,2]
[381001172,1755931846353,-438.02,0.00013698,2]
[381001174,1755931846362,-400.0,0.00013698,2]
[381001176,1755931846372,-400.0,0.00013698,2]
[381001178,1755931846382,-429.8,0.00013698,2]
[381001180,1755931846391,-877.23,0.00013698,2]
[381001182,1755931846401,-400.0,0.00013698,2]
[381001184,1755931846410,-400.0,0.00013698,2]
[381001186,1755931846420,-451.83,0.00013698,2]
[381001188,1755931846429,-587.21,0.00013698,2]
[381001190,1755931846439,-400.0,0.00013698,2]
[381001192,1755931846450,-400.0,0.00013698,2]
[381001194,1755931846459,-400.0,0.00013698,2]
[381001196,1755931846469,-463.29,0.00013698,2]
[381001198,1755931846478,-400.0,0.00013698,2]
[381001200,1755931846488,-869.42,0.00013698,2]
[381001202,1755931846497,-400.0,0.00013698,2]
[381001204,1755931846506,-400.0,0.00013698,2]
[381001206,1755931846515,-400.0,0.00013698,2]
[381001208,1755931846525,-403.17863241,0.00013698,2]
[381001210,1755931846534,-786.08,0.00013698,2]
[381001212,1755931846543,-664.68,0.00013698,2]
[381001214,1755931846553,-400.0,0.00013698,2]
[381001216,1755931846562,-400.0,0.00013698,2]
[381001218,1755931846572,-508.66,0.00013698,2]
[381001220,1755931846581,-400.0,0.00013698,2]
[381001222,1755931846590,-400.0,0.00013698,2]
[381001224,1755931846599,-577.62,0.00013698,2]
[381001227,1755931846610,-402.76,0.00013698,2]
[381001229,1755931846624,-411.14,0.00013698,2]
[381001230,1755931846634,-527.49,0.00013698,2]
[381001233,1755931846643,-400.0,0.00013698,2]
[381001235,1755931846653,-400.0,0.00013698,2]
[381001237,1755931846663,-918.51,0.00013698,2]
[381001239,1755931846672,-228.74097946,0.00013698,2]
[381001241,1755931846682,-400.0,0.00013698,2]
[381001243,1755931846691,-402.34,0.00013698,2]
[381001245,1755931846701,-400.0,0.00013698,2]
[381001247,1755931846710,-512.08,0.00013698,2]
[381001249,1755931846719,-400.0,0.00013698,2]
[381001252,1755931846739,-400.0,0.00013698,2]
[381001254,1755931846749,-470.3,0.00013698,2]
[381001256,1755931846758,-601.56,0.00013698,2]
[381001258,1755931846768,-580.35,0.00013698,2]
[381001260,1755931846778,-400.0,0.00013698,2]
[381001262,1755931846787,-433.95,0.00013698,2]
[381001264,1755931846796,-400.0,0.00013698,2]
[381001266,1755931846806,-400.0,0.00013698,2]
[381001268,1755931846816,-400.0,0.00013698,2]
[381001270,1755931846825,-537.16,0.00013698,2]
[381001272,1755931846835,-400.0,0.00013698,2]
[381001274,1755931846844,-468.12,0.00013698,2]
[381001276,1755931846854,-485.28,0.00013698,2]
[381001278,1755931846863,-403.69,0.00013698,2]
[381001280,1755931846873,-400.0,0.00013698,2]
[381001282,1755931846883,-804.8,0.00013698,2]
[381001284,1755931846893,-400.0,0.00013698,2]
[381001286,1755931846903,-400.0,0.00013698,2]
[381001288,1755931846912,-564.67,0.00013698,2]
[381001290,1755931846922,-649.88,0.00013698,2]
[381001292,1755931846931,-400.0,0.00013698,2]
[381001294,1755931846941,-400.0,0.00013698,2]
[381001296,1755931846950,-457.22,0.00013698,2]
[381001298,1755931846960,-400.0,0.00013698,2]
[381001300,1755931846969,-400.0,0.00013698,2]
[381001302,1755931846979,-400.0,0.00013698,2]
[381001305,1755931846989,-469.5,0.00013698,2]
[381001307,1755931846999,-400.0,0.00013698,2]
[381001309,1755931847008,-400.0,0.00013698,2]
[381001311,1755931847018,-400.0,0.00013698,2]
[381001313,1755931847027,-401.11132935,0.00013698,2]
[381001315,1755931847037,-151.07205188,0.00013698,2]
[381001317,1755931847047,-400.0,0.00013698,2]
[381001319,1755931847056,-400.0,0.00013698,2]
[381001321,1755931847066,-410.86,0.00013698,2]
[381001323,1755931847076,-430.34,0.00013698,2]
[381001325,1755931847086,-601.58,0.00013698,2]
[381001327,1755931847096,-430.64,0.00013698,2]
[381001328,1755931847105,-400.0,0.00013698,2]
[381001329,1755931847115,-436.9,0.00013698,2]
[381001330,1755931847125,-400.0,0.00013698,2]
[381001331,1755931847134,-3046.99,0.00013698,2]
[381001332,1755931847144,-627.75,0.00013698,2]
[381001333,1755931847153,-400.0,0.00013698,2]
[381001334,1755931847163,-400.0,0.00013698,2]
[381001335,1755931847173,-400.0,0.00013698,2]
[381001336,1755931847182,-660.95,0.00013698,2]
[381001337,1755931847192,-400.0,0.00013698,2]
[381001338,1755931847202,-400.0,0.00013698,2]
[381001339,1755931847212,-400.0,0.00013698,2]
[381001340,1755931847221,-980.63,0.00013698,2]
[381001341,1755931847231,-400.0,0.00013698,2]
[381001343,1755931847241,-400.0,0.00013698,2]
[381001345,1755931847251,-638.06,0.00013698,2]
[381001347,1755931847260,-400.0,0.00013698,2]
[381001349,1755931847270,-639.52,0.00013698,2]
[381001351,1755931847280,-400.0,0.00013698,2]
[381001353,1755931847290,-468.45,0.00013698,2]
[381001356,1755931847300,-400.0,0.00013698,2]
[381001358,1755931847309,-400.0,0.00013698,2]
[381001360,1755931847319,-400.0,0.00013698,2]
[381001362,1755931847329,-400.0,0.00013698,2]
[381001364,1755931847339,-400.0,0.00013698,2]
[381001366,1755931847353,-400.0,0.00013698,2]
[381001368,1755931847363,-400.0,0.00013698,2]
[381001370,1755931847372,-400.0,0.00013698,2]
[381001372,1755931847382,-705.34,0.00013698,2]
[381001375,1755931847392,-400.0,0.00013698,2]
[381001377,1755931847402,-707.47,0.00013698,2]
[381001379,1755931847413,-400.0,0.00013698,2]
[381001381,1755931847423,-400.0,0.00013698,2]
[381001383,1755931847434,-400.0,0.00013698,2]
[381001385,1755931847444,-400.0,0.00013698,2]
[381001387,1755931847455,-400.0,0.00013698,2]
[381001389,1755931847467,-400.0,0.00013698,2]
[381001391,1755931847477,-400.0,0.00013698,2]
[381001393,1755931847487,-401.78924056,0.00013698,2]
[381001395,1755931847497,-437.31,0.00013698,2]
[381001398,1755931847507,-467.3,0.00013698,2]
[381001400,1755931847517,-400.0,0.00013698,2]
[381001402,1755931847527,-400.0,0.00013698,2]
[381001404,1755931847538,-776.41,0.00013698,2]
[381001406,1755931847548,-462.47,0.00013698,2]
[381001408,1755931847558,-467.93,0.00013698,2]
[381001410,1755931847568,-400.0,0.00013698,2]
[381001412,1755931847580,-400.0,0.00013698,2]
[381001414,1755931847590,-400.0,0.00013698,2]
[381001417,1755931847600,-463.03,0.00013698,2]
[381001419,1755931847610,-470.82,0.00013698,2]
[381001421,1755931847623,-400.0,0.00013698,2]
[381001423,1755931847633,-529.75,0.00013698,2]
[381001458,1755931847950,-591.75,0.00013698,2]
[381001461,1755931847971,-254.304406,0.00013698,2]
[381001463,1755931847982,-400.0,0.00013698,2]
[381001465,1755931847992,-400.0,0.00013698,2]
[381001467,1755931848003,-508.24,0.00013698,2]
[381001469,1755931848012,-400.0,0.00013698,2]
[381001471,1755931848022,-500.0,0.00013698,2]
[381001473,1755931848031,-637.59,0.00013698,2]
[381001475,1755931848041,-422.66,0.00013698,2]
[381001477,1755931848050,-458.42,0.00013698,2]
[381001479,1755931848060,-400.0,0.00013698,2]
[381001481,1755931848069,-400.0,0.00013698,2]
[381001483,1755931848079,-520.02,0.00013698,2]
[381001485,1755931848089,-400.0,0.00013698,2]
[381001487,1755931848099,-469.67,0.00013698,2]
[381001489,1755931848109,-907.21,0.00013698,2]
[381001491,1755931848119,-400.0,0.00013698,2]
[381001493,1755931848129,-583.19,0.00013698,2]
[381001495,1755931848139,-400.0,0.00013698,2]
[381001497,1755931848148,-401.3893302,0.00013698,2]
[381001499,1755931848158,-400.0,0.00013698,2]
[381001501,1755931848169,-400.0,0.00013698,2]
[381001503,1755931848178,-780.26,0.00013698,2]
[381001505,1755931848188,-524.65,0.00013698,2]
[381001507,1755931848197,-276.8763747,0.00013698,2]
[381001509,1755931848207,-400.0,0.00013698,2]
[381001511,1755931848216,-400.0,0.00013698,2]
[381001514,1755931848226,-549.68,0.00013698,2]
[381001516,1755931848236,-425.06,0.00013698,2]
[381001518,1755931848245,-406.11,0.00013698,2]
[381001520,1755931848255,-400.0,0.00013698,2]
[381001521,1755931848264,-400.0,0.00013698,2]
[381001524,1755931848274,-400.7,0.00013698,2]
[381001526,1755931848287,-400.0,0.00013698,2]
[381001528,1755931848297,-400.0,0.00013698,2]
[381001530,1755931848307,-630.71,0.00013698,2]
[381001532,1755931848316,-667.38,0.00013698,2]
[381001534,1755931848326,-400.0,0.00013698,2]
[381001536,1755931848335,-787.49,0.00013698,2]
[381001538,1755931848345,-400.0,0.00013698,2]
[381001540,1755931848355,-400.0,0.00013698,2]
[381001542,1755931848365,-400.0,0.00013698,2]
[381001544,1755931848374,-400.0,0.00013698,2]
[381001546,1755931848384,-406.38427549,0.00013698,2]
[381001548,1755931848394,-180.16829228,0.00013698,2]
[381001550,1755931848404,-400.0,0.00013698,2]
[381001552,1755931848414,-468.25,0.00013698,2]
[381001554,1755931848424,-400.0,0.00013698,2]
[381001556,1755931848433,-400.0,0.00013698,2]
[381001559,1755931848443,-659.02,0.00013698,2]
[381001561,1755931848453,-460.48,0.00013698,2]
[381001563,1755931848466,-400.0,0.00013698,2]
[381001565,1755931848476,-829.84,0.00013698,2]
[381001567,1755931848485,-400.0,0.00013698,2]
[381001569,1755931848495,-850.13,0.00013698,2]
[381001571,1755931848505,-546.11,0.00013698,2]
[381001573,1755931848514,-400.0,0.00013698,2]
[381001575,1755931848524,-400.0,0.00013698,2]
[381001577,1755931848534,-746.69,0.00013698,2]
[381001579,1755931848545,-446.38,0.00013698,2]
[381001582,1755931848557,-462.11,0.00013698,2]
[381001584,1755931848567,-400.0,0.00013698,2]
[381001586,1755931848577,-432.45,0.00013698,2]
[381001588,1755931848586,-709.67,0.00013698,2]
[381001590,1755931848596,-400.0,0.00013698,2]
[381001592,1755931848606,-526.81,0.00013698,2]
[381001594,1755931848617,-400.0,0.00013698,2]
[381001596,1755931848627,-658.76,0.00013698,2]
[381001598,1755931848637,-400.0,0.00013698,2]
[381001600,1755931848648,-400.0,0.00013698,2]
[381001602,1755931848658,-400.0,0.00013698,2]
[381001604,1755931848668,-475.5,0.00013698,2]
[381001606,1755931848678,-400.0,0.00013698,2]
[381001608,1755931848688,-881.24,0.00013698,2]
[381001610,1755931848699,-400.0,0.00013698,2]
[381001612,1755931848709,-400.0,0.00013698,2]
[381001614,1755931848718,-400.0,0.00013698,2]
[381001616,1755931848729,-582.19,0.00013698,2]
[381001618,1755931848739,-400.0,0.00013698,2]
[381001620,1755931848749,-610.85,0.00013698,2]
[381001622,1755931848759,-400.0,0.00013698,2]